[Event "11th LCC Super Blitz 2019"]
[Site "London"]
[Date "2019.12.08"]
[Round "1.1"]
[White "Howell, David Wl"]
[Black "Davis, Holden"]
[Result "1-0"]
[ECO "A80"]
[WhiteElo "2650"]
[BlackElo "1769"]
[Annotator "ChessBase"]
[PlyCount "27"]
[EventDate "2019.12.08"]
[EventType "swiss"]
[EventCountry "ENG"]
[SourceTitle "playchess.com"]
[Source "ChessBase"]
[SourceQuality "1"]
[TimeControl "180+2"]

1. d4 {[%emt 0:00:01]} e6 {[%emt 0:00:00]} 2. Bf4 {[%emt 0:00:01]} f5 {[%emt 0:00:00]} 3. e3 {[%emt 0:00:04]} Nf6 {[%emt 0:00:02]} 4. h3 {[%emt 0:00:01]} b6 {[%emt 0:00:04]} 5. Be2 {[%emt 0:00:03]} Bb7 {[%emt 0:00:02]} 6. Bf3 {[%emt 0:00:01]} Ne4 {[%emt 0:00:16]} 7. Nd2 {[%emt 0:00:01]} d5 {[%emt 0:00:16]} 8. Be5 {[%emt 0:00:08]} Rg8 {[%emt 0:01:02]} 9. Bxe4 {[%emt 0:00:02]} dxe4 {[%emt 0:00:14]} 10. Qh5+ {[%emt 0:00:02]} Kd7 {[%emt 0:00:52]} 11. Qxh7 {[%emt 0:00:02]} Be7 {[%emt 0:00:16]} 12. Ne2 {[%emt 0:00:11]} Nc6 {[%emt 0:00:03]} 13. O-O-O {[%emt 0:00:02]} Qf8 {[%emt 0:00:05]} 14. Qg6 {[%emt 0:00:11]} 1-0

[Event "11th LCC Super Blitz 2019"]
[Site "London"]
[Date "2019.12.08"]
[Round "1.2"]
[White "Rowson, Jonathan"]
[Black "Ignatovic, Ernest"]
[Result "1-0"]
[ECO "A53"]
[WhiteElo "2561"]
[BlackElo "1703"]
[Annotator "ChessBase"]
[PlyCount "72"]
[EventDate "2019.12.08"]
[EventType "swiss"]
[EventCountry "ENG"]
[SourceTitle "playchess.com"]
[Source "ChessBase"]
[SourceQuality "1"]
[TimeControl "180+2"]

1. d4 {[%emt 0:00:02]} Nf6 2. c4 {[%emt 0:00:02]} d6 3. Nc3 {[%emt 0:00:02]} e5 4. dxe5 {[%emt 0:00:02]} dxe5 5. Qxd8+ {[%emt 0:00:01]} Kxd8 {[%emt 0:00:02]} 6. Nf3 Nfd7 {[%emt 0:00:03]} 7. g4 {[%emt 0:00:04]} h6 {[%emt 0:00:09]} 8. b3 {[%emt 0:00:09]} c6 {[%emt 0:00:01]} 9. Bb2 {[%emt 0:00:02]} Kc7 {[%emt 0:00:15]} 10. O-O-O {[%emt 0:00:02]} a5 {[%emt 0:00:03]} 11. Rg1 {[%emt 0:00:26]} f6 {[%emt 0:00:09]} 12. Nh4 {[%emt 0:00:19]} Nc5 {[%emt 0:00:46]} 13. Ng6 {[%emt 0:00:34]} Rg8 {[%emt 0:00:03]} 14. Nxf8 {[%emt 0:00:19]} Rxf8 15. Ba3 {[%emt 0:00:12]} Nba6 {[%emt 0:00:22]} 16. Ne4 {[%emt 0:00:22]} Nxe4 {[%emt 0:00:26]} 17. Bxf8 {[%emt 0:00:02]} Nxf2 18. Re1 {[%emt 0:00:16]} Bxg4 19. Bxg7 {[%emt 0:00:08]} Nb4 {[%emt 0:00:06]} 20. Bxf6 {[%emt 0:00:03]} Bf5 {[%emt 0:00:10]} 21. Bxe5+ {[%emt 0:00:04]} Kd7 {[%emt 0:00:11]} 22. Rg7+ {[%emt 0:00:08]} Ke6 {[%emt 0:00:03]} 23. Bg3 {[%emt 0:00:02]} Ne4 {[%emt 0:00:11]} 24. a3 Nxg3 {[%emt 0:00:17]} 25. hxg3 {[%emt 0:00:03]} Na6 {[%emt 0:00:13]} 26. e4 {[%emt 0:00:13]} Kf6 {[%emt 0:00:12]} 27. Rxb7 {[%emt 0:00:01]} Bg4 {[%emt 0:00:05]} 28. e5+ {[%emt 0:00:02]} Ke6 29. Be2 {[%emt 0:00:00]} Bf5 {[%emt 0:00:02]} 30. b4 {[%emt 0:00:04]} Rg8 {[%emt 0:00:07]} 31. g4 {[%emt 0:00:00]} Be4 {[%emt 0:00:06]} 32. c5 {[%emt 0:00:00]} axb4 {[%emt 0:00:02]} 33. axb4 {[%emt 0:00:01]} Nb8 {[%emt 0:00:02]} 34. Bc4+ Bd5 {[%emt 0:00:02]} 35. Bxd5+ {[%emt 0:00:00]} cxd5 36. b5 {[%emt 0:00:02]} Rxg4 {[%emt 0:00:01]} 1-0

[Event "11th LCC Super Blitz 2019"]
[Site "London"]
[Date "2019.12.08"]
[Round "1.2"]
[White "Dhemrait, Jagdeep"]
[Black "Pert, Nicholas"]
[Result "0-1"]
[ECO "B30"]
[WhiteElo "1834"]
[BlackElo "2560"]
[Annotator "ChessBase"]
[PlyCount "46"]
[EventDate "2019.12.08"]
[EventType "swiss"]
[EventCountry "ENG"]
[SourceTitle "playchess.com"]
[Source "ChessBase"]
[SourceQuality "1"]
[TimeControl "180+2"]

1. e4 {[%emt 0:00:00]} c5 {[%emt 0:00:00]} 2. Nc3 {[%emt 0:00:01]} Nc6 {[%emt 0:00:00]} 3. Nf3 {[%emt 0:00:01]} e5 {[%emt 0:00:06]} 4. Bc4 {[%emt 0:00:02]} d6 {[%emt 0:00:01]} 5. d3 {[%emt 0:00:02]} Be7 {[%emt 0:00:01]} 6. h3 {[%emt 0:00:02]} Nf6 {[%emt 0:00:02]} 7. Bg5 {[%emt 0:00:02]} O-O {[%emt 0:00:02]} 8. O-O {[%emt 0:00:02]} Be6 {[%emt 0:00:01]} 9. Bxe6 {[%emt 0:00:07]} fxe6 {[%emt 0:00:01]} 10. Qd2 {[%emt 0:00:06]} Qe8 {[%emt 0:00:02]} 11. Ne2 {[%emt 0:00:03]} Qg6 {[%emt 0:00:03]} 12. Nh4 {[%emt 0:00:06]} Qf7 {[%emt 0:00:02]} 13. Ng3 {[%emt 0:00:06]} h6 {[%emt 0:00:05]} 14. Bxf6 {[%emt 0:00:03]} Bxf6 {[%emt 0:00:03]} 15. Nf3 {[%emt 0:00:02]} Qg6 {[%emt 0:00:03]} 16. c3 {[%emt 0:00:04]} Rf7 {[%emt 0:00:04]} 17. a3 {[%emt 0:00:07]} Raf8 {[%emt 0:00:02]} 18. b4 {[%emt 0:00:04]} b6 {[%emt 0:00:05]} 19. bxc5 {[%emt 0:00:03]} bxc5 {[%emt 0:00:01]} 20. Rab1 {[%emt 0:00:02]} Bd8 {[%emt 0:00:15]} 21. d4 {[%emt 0:00:10]} cxd4 {[%emt 0:00:12]} 22. cxd4 {[%emt 0:00:02]} Rxf3 {[%emt 0:00:04]} 23. gxf3 {[%emt 0:00:07]} Nxd4 {[%emt 0:00:01]} 0-1

[Event "11th LCC Super Blitz 2019"]
[Site "London"]
[Date "2019.12.08"]
[Round "1.3"]
[White "Grover, Sahaj"]
[Black "Zhao, Haolin"]
[Result "1-0"]
[ECO "C40"]
[WhiteElo "2486"]
[BlackElo "1725"]
[Annotator "ChessBase"]
[PlyCount "123"]
[EventDate "2019.12.08"]
[EventType "swiss"]
[EventCountry "ENG"]
[SourceTitle "playchess.com"]
[Source "ChessBase"]
[SourceQuality "1"]
[TimeControl "180+2"]

1. e4 {[%emt 0:00:00]} e5 {[%emt 0:00:00]} 2. Nf3 {[%emt 0:00:00]} Qe7 {[%emt 0:00:00]} 3. Nc3 {[%emt 0:00:01]} Nc6 {[%emt 0:00:02]} 4. Bc4 {[%emt 0:00:02]} g6 {[%emt 0:00:02]} 5. d3 {[%emt 0:00:00]} Bg7 {[%emt 0:00:01]} 6. Bg5 {[%emt 0:00:02]} Nf6 {[%emt 0:00:04]} 7. Nd5 {[%emt 0:00:01]} Qd8 {[%emt 0:00:01]} 8. Qd2 {[%emt 0:00:01]} h6 {[%emt 0:00:07]} 9. Nxf6+ {[%emt 0:00:01]} Bxf6 {[%emt 0:00:03]} 10. Bxh6 {[%emt 0:00:02]} d6 {[%emt 0:00:03]} 11. h3 {[%emt 0:00:14]} Be6 {[%emt 0:00:03]} 12. Bxe6 {[%emt 0:00:04]} fxe6 {[%emt 0:00:02]} 13. Bg5 {[%emt 0:00:01]} Qe7 {[%emt 0:00:04]} 14. Bxf6 {[%emt 0:00:07]} Qxf6 {[%emt 0:00:03]} 15. Qg5 {[%emt 0:00:01]} Qxg5 {[%emt 0:00:04]} 16. Nxg5 {[%emt 0:00:01]} Ke7 {[%emt 0:00:02]} 17. h4 {[%emt 0:00:02]} Rag8 {[%emt 0:00:11]} 18. c3 {[%emt 0:00:01]} Nd8 {[%emt 0:00:06]} 19. Ke2 {[%emt 0:00:01]} Nf7 {[%emt 0:00:01]} 20. Nxf7 {[%emt 0:00:02]} Kxf7 {[%emt 0:00:02]} 21. Raf1 {[%emt 0:00:01]} g5 {[%emt 0:00:05]} 22. hxg5 {[%emt 0:00:02]} Rxh1 {[%emt 0:00:03]} 23. Rxh1 {[%emt 0:00:00]} Kg6 {[%emt 0:00:09]} 24. Rh6+ {[%emt 0:00:03]} Kxg5 {[%emt 0:00:03]} 25. Rxe6 {[%emt 0:00:01]} Rg7 {[%emt 0:00:06]} 26. g3 {[%emt 0:00:01]} Rf7 {[%emt 0:00:03]} 27. Re8 {[%emt 0:00:02]} b6 {[%emt 0:00:02]} 28. b4 {[%emt 0:00:01]} c5 {[%emt 0:00:06]} 29. b5 {[%emt 0:00:04]} Rd7 {[%emt 0:00:04]} 30. a4 {[%emt 0:00:01]} Kf6 {[%emt 0:00:03]} 31. Ke3 {[%emt 0:00:01]} Kf7 {[%emt 0:00:01]} 32. Rc8 {[%emt 0:00:03]} Ke6 {[%emt 0:00:07]} 33. Re8+ {[%emt 0:00:04]} Kf7 {[%emt 0:00:01]} 34. Rh8 {[%emt 0:00:01]} Kg6 {[%emt 0:00:09]} 35. f4 {[%emt 0:00:02]} exf4+ {[%emt 0:00:03]} 36. gxf4 {[%emt 0:00:00]} d5 {[%emt 0:00:08]} 37. exd5 {[%emt 0:00:08]} Rxd5 {[%emt 0:00:04]} 38. Ke4 {[%emt 0:00:01]} Rd7 {[%emt 0:00:02]} 39. d4 {[%emt 0:00:01]} cxd4 {[%emt 0:00:01]} 40. cxd4 {[%emt 0:00:01]} Re7+ {[%emt 0:00:02]} 41. Kd5 {[%emt 0:00:01]} Rd7+ {[%emt 0:00:01]} 42. Ke5 {[%emt 0:00:01]} Kg7 {[%emt 0:00:05]} 43. Ra8 {[%emt 0:00:03]} Re7+ {[%emt 0:00:07]} 44. Kd6 {[%emt 0:00:01]} Rf7 {[%emt 0:00:00]} 45. d5 {[%emt 0:00:01]} Rxf4 {[%emt 0:00:02]} 46. Rxa7+ {[%emt 0:00:01]} Kg6 {[%emt 0:00:05]} 47. Kc6 {[%emt 0:00:01]} Rf6+ {[%emt 0:00:01]} 48. d6 {[%emt 0:00:03]} Kf5 {[%emt 0:00:07]} 49. Re7 {[%emt 0:00:00]} Rf8 {[%emt 0:00:04]} 50. d7 {[%emt 0:00:00]} Ra8 {[%emt 0:00:14]} 51. Re8 {[%emt 0:00:02]} Rxa4 {[%emt 0:00:02]} 52. d8=Q {[%emt 0:00:02]} Rc4+ {[%emt 0:00:02]} 53. Kxb6 {[%emt 0:00:01]} Rf4 {[%emt 0:00:06]} 54. Qd7+ {[%emt 0:00:02]} Kg5 {[%emt 0:00:02]} 55. Rg8+ {[%emt 0:00:01]} Kf6 {[%emt 0:00:04]} 56. Qd6+ {[%emt 0:00:01]} Kf5 {[%emt 0:00:02]} 57. Rf8+ {[%emt 0:00:01]} Kg5 {[%emt 0:00:03]} 58. Rxf4 {[%emt 0:00:02]} Kh5 {[%emt 0:00:03]} 59. Qe5+ {[%emt 0:00:01]} Kg6 {[%emt 0:00:02]} 60. Rf6+ {[%emt 0:00:01]} Kg7 {[%emt 0:00:01]} 61. Qe7+ {[%emt 0:00:01]} Kg8 {[%emt 0:00:01]} 62. Rf8# {[%emt 0:00:01]} 1-0

[Event "11th LCC Super Blitz 2019"]
[Site "London"]
[Date "2019.12.08"]
[Round "1.3"]
[White "Arkell, Keith C"]
[Black "Watson, Steven L"]
[Result "1-0"]
[ECO "D36"]
[WhiteElo "2453"]
[BlackElo "1634"]
[Annotator "ChessBase"]
[PlyCount "55"]
[EventDate "2019.12.08"]
[EventType "swiss"]
[EventCountry "ENG"]
[SourceTitle "playchess.com"]
[Source "ChessBase"]
[SourceQuality "1"]
[TimeControl "180+2"]

1. d4 {[%emt 0:00:03]} Nf6 {[%emt 0:00:00]} 2. Nf3 {[%emt 0:00:01]} d5 {[%emt 0:00:05]} 3. c4 {[%emt 0:00:02]} e6 {[%emt 0:00:06]} 4. cxd5 {[%emt 0:00:01]} exd5 {[%emt 0:00:02]} 5. Nc3 {[%emt 0:00:02]} Be7 {[%emt 0:00:25]} 6. Bg5 {[%emt 0:00:02]} O-O {[%emt 0:00:06]} 7. e3 {[%emt 0:00:01]} Nbd7 {[%emt 0:00:19]} 8. Bd3 {[%emt 0:00:02]} h6 {[%emt 0:00:08]} 9. Bh4 {[%emt 0:00:02]} c6 {[%emt 0:00:20]} 10. Qc2 {[%emt 0:00:03]} Re8 {[%emt 0:00:14]} 11. O-O {[%emt 0:00:04]} Nf8 {[%emt 0:00:06]} 12. Ne5 {[%emt 0:00:02]} Be6 {[%emt 0:00:13]} 13. f4 {[%emt 0:00:02]} Ng4 {[%emt 0:00:09]} 14. Bxe7 {[%emt 0:00:05]} Qxe7 {[%emt 0:00:04]} 15. Nxg4 {[%emt 0:00:04]} Bxg4 {[%emt 0:00:02]} 16. Rae1 {[%emt 0:00:02]} Nd7 {[%emt 0:00:35]} 17. f5 {[%emt 0:00:07]} f6 {[%emt 0:00:11]} 18. e4 {[%emt 0:00:03]} dxe4 {[%emt 0:00:06]} 19. Rxe4 {[%emt 0:00:02]} Qd8 {[%emt 0:00:17]} 20. Rxg4 {[%emt 0:00:03]} Nb6 {[%emt 0:00:05]} 21. Qb3+ {[%emt 0:00:06]} Kh8 {[%emt 0:00:02]} 22. h3 {[%emt 0:00:15]} Qc7 {[%emt 0:00:01]} 23. Re4 {[%emt 0:00:04]} Rad8 {[%emt 0:00:01]} 24. Rfe1 {[%emt 0:00:03]} Rxe4 {[%emt 0:00:02]} 25. Rxe4 {[%emt 0:00:01]} Rf8 {[%emt 0:00:02]} 26. Qe6 {[%emt 0:00:03]} Nd7 {[%emt 0:00:02]} 27. Qe7 {[%emt 0:00:01]} Rd8 {[%emt 0:00:07]} 28. Bc4 {[%emt 0:00:04]} 1-0

[Event "11th LCC Super Blitz 2019"]
[Site "London"]
[Date "2019.12.08"]
[Round "1.3"]
[White "Mohnblatt, Nicolas"]
[Black "Maze, Sebastien"]
[Result "0-1"]
[ECO "D00"]
[WhiteElo "1689"]
[BlackElo "2549"]
[Annotator "ChessBase"]
[PlyCount "58"]
[EventDate "2019.12.08"]
[EventType "swiss"]
[EventCountry "ENG"]
[SourceTitle "playchess.com"]
[Source "ChessBase"]
[SourceQuality "1"]
[TimeControl "180+2"]

1. d4 {[%emt 1:13:44]} Nf6 2. Nc3 {[%emt 0:00:02]} d5 {[%emt 0:00:04]} 3. Bf4 a6 {[%emt 0:00:04]} 4. e3 {[%emt 0:00:03]} e6 5. Nf3 {[%emt 0:00:03]} c5 6. Be2 {[%emt 0:00:13]} Nbd7 {[%emt 0:00:02]} 7. O-O {[%emt 0:00:02]} b5 {[%emt 0:00:02]} 8. Ne5 {[%emt 0:00:07]} Bb7 9. Re1 {[%emt 0:00:49]} Rc8 {[%emt 0:00:02]} 10. Nb1 {[%emt 0:00:06]} Nxe5 {[%emt 0:00:18]} 11. Bxe5 Bd6 {[%emt 0:00:01]} 12. Bxd6 {[%emt 0:00:08]} Qxd6 {[%emt 0:00:01]} 13. c3 {[%emt 0:00:02]} O-O {[%emt 0:00:03]} 14. Nd2 {[%emt 0:00:03]} e5 {[%emt 0:00:01]} 15. dxe5 {[%emt 0:00:05]} Qxe5 16. Nf3 {[%emt 0:00:01]} Qc7 {[%emt 0:00:09]} 17. Bd3 {[%emt 0:00:01]} Rcd8 {[%emt 0:00:12]} 18. Qb1 {[%emt 0:00:23]} Bc6 {[%emt 0:00:02]} 19. e4 {[%emt 0:00:09]} dxe4 {[%emt 0:00:02]} 20. Bxe4 {[%emt 0:00:09]} Nxe4 {[%emt 0:00:01]} 21. Rxe4 {[%emt 0:00:04]} Bxe4 {[%emt 0:00:02]} 22. Qxe4 {[%emt 0:00:01]} Rfe8 23. Qg4 {[%emt 0:00:05]} Qd7 {[%emt 0:00:02]} 24. Qxd7 {[%emt 0:00:11]} Rxd7 25. Kf1 {[%emt 0:00:02]} h6 {[%emt 0:00:07]} 26. a4 {[%emt 0:00:04]} b4 27. cxb4 {[%emt 0:00:03]} cxb4 28. Rc1 {[%emt 0:00:01]} g5 {[%emt 0:00:12]} 29. Rc6 Rd1+ {[%emt 0:00:02]} 0-1

[Event "11th LCC Super Blitz 2019"]
[Site "London"]
[Date "2019.12.08"]
[Round "1.4"]
[White "Wallace, John Paul"]
[Black "Jackson, Julius"]
[Result "1-0"]
[ECO "D06"]
[WhiteElo "2344"]
[BlackElo "1584"]
[Annotator "NA"]
[PlyCount "45"]
[EventDate "2019.12.08"]
[EventType "swiss"]
[EventCountry "ENG"]
[SourceTitle "playchess.com"]
[Source "ChessBase"]
[SourceQuality "1"]
[TimeControl "180+2"]

1. d4 {[%emt 0:00:00]} Nf6 {[%emt 0:00:00]} 2. c4 {[%emt 0:00:00]} d5 {[%emt 0:00:01]} 3. cxd5 {[%emt 0:00:02]} Nxd5 {[%emt 0:00:02]} 4. Nf3 {[%emt 0:00:01]} Bg4 {[%emt 0:00:10]} 5. e4 {[%emt 0:00:06]} Nf6 {[%emt 0:00:11]} 6. Nc3 {[%emt 0:00:02]} e6 {[%emt 0:00:04]} 7. Be2 {[%emt 0:00:05]} Nc6 {[%emt 0:00:04]} 8. Be3 {[%emt 0:00:04]} Bb4 {[%emt 0:00:06]} 9. Qd3 {[%emt 0:00:13]} O-O {[%emt 0:00:13]} 10. Rd1 {[%emt 0:00:02]} Qd7 {[%emt 0:00:08]} 11. O-O {[%emt 0:00:07]} Rad8 {[%emt 0:00:04]} 12. Qc2 {[%emt 0:00:13]} Qe7 {[%emt 0:00:23]} 13. h3 {[%emt 0:00:36]} Bh5 {[%emt 0:00:03]} 14. Na4 {[%emt 0:00:15]} Rd7 {[%emt 0:00:21]} 15. a3 {[%emt 0:00:04]} Ba5 {[%emt 0:00:09]} 16. Nc5 {[%emt 0:00:01]} Rdd8 {[%emt 0:00:06]} 17. Nxb7 {[%emt 0:00:02]} Rb8 {[%emt 0:00:02]} 18. Qxc6 {[%emt 0:00:02]} Bb6 {[%emt 0:00:27]} 19. b4 {[%emt 0:00:01]} Bg6 {[%emt 0:00:09]} 20. Nd2 {[%emt 0:00:10]} Rfe8 {[%emt 0:00:14]} 21. f3 {[%emt 0:00:04]} Nd7 {[%emt 0:00:08]} 22. Nc5 {[%emt 0:00:04]} Nxc5 {[%emt 0:00:08]} 23. dxc5 {[%emt 0:00:03]} 1-0

[Event "11th LCC Super Blitz 2019"]
[Site "London"]
[Date "2019.12.08"]
[Round "1.5"]
[White "Willow, Jonah B"]
[Black "Van Zyl-Rudd, Jack"]
[Result "1-0"]
[ECO "B08"]
[WhiteElo "2355"]
[BlackElo "2290"]
[Annotator "NA"]
[PlyCount "69"]
[EventDate "2019.12.08"]
[EventType "swiss"]
[EventCountry "ENG"]
[SourceTitle "playchess.com"]
[Source "ChessBase"]
[SourceQuality "1"]
[TimeControl "180+2"]

1. e4 {[%emt 0:00:00]} Nc6 {[%emt 0:00:00]} 2. Nf3 {[%emt 0:00:00]} d6 {[%emt 0:00:00]} 3. d4 {[%emt 0:00:02]} Nf6 {[%emt 0:00:01]} 4. Nc3 {[%emt 0:00:02]} g6 {[%emt 0:00:02]} 5. Bd3 {[%emt 0:00:07]} Bg7 {[%emt 0:00:01]} 6. O-O {[%emt 0:00:02]} O-O {[%emt 0:00:02]} 7. h3 {[%emt 0:00:06]} e5 {[%emt 0:00:02]} 8. d5 {[%emt 0:00:10]} Ne7 {[%emt 0:00:01]} 9. Nd2 {[%emt 0:00:04]} Nh5 {[%emt 0:00:15]} 10. Be2 {[%emt 0:00:24]} Nf4 {[%emt 0:00:02]} 11. Nc4 {[%emt 0:00:06]} Nxe2+ {[%emt 0:00:22]} 12. Qxe2 {[%emt 0:00:02]} f5 {[%emt 0:00:04]} 13. f4 {[%emt 0:00:25]} exf4 {[%emt 0:00:12]} 14. Bxf4 {[%emt 0:00:05]} fxe4 {[%emt 0:00:02]} 15. Qxe4 {[%emt 0:00:17]} Bf5 {[%emt 0:00:03]} 16. Qf3 {[%emt 0:00:15]} Bxc2 {[%emt 0:00:20]} 17. Qe2 {[%emt 0:00:09]} Bf5 {[%emt 0:00:05]} 18. Bg5 {[%emt 0:00:01]} Re8 {[%emt 0:00:38]} 19. Rae1 {[%emt 0:00:04]} Qd7 {[%emt 0:00:01]} 20. Bxe7 {[%emt 0:00:16]} Bf8 {[%emt 0:00:01]} 21. g4 {[%emt 0:00:06]} Rxe7 {[%emt 0:00:01]} 22. Qd1 {[%emt 0:00:20]} b5 {[%emt 0:01:00]} 23. Rxe7 {[%emt 0:00:13]} Qxe7 {[%emt 0:00:04]} 24. Nxb5 {[%emt 0:00:10]} Be4 {[%emt 0:00:05]} 25. Re1 {[%emt 0:00:05]} Re8 {[%emt 0:00:01]} 26. Nc3 {[%emt 0:00:02]} Qh4 {[%emt 0:00:20]} 27. Nxe4 {[%emt 0:00:01]} Rxe4 {[%emt 0:00:03]} 28. Rxe4 {[%emt 0:00:00]} Qg3+ {[%emt 0:00:01]} 29. Kf1 {[%emt 0:00:01]} Qxh3+ {[%emt 0:00:01]} 30. Kf2 {[%emt 0:00:06]} Qh2+ {[%emt 0:00:02]} 31. Ke3 {[%emt 0:00:01]} Qg3+ {[%emt 0:00:02]} 32. Qf3 {[%emt 0:00:02]} Qe1+ {[%emt 0:00:02]} 33. Qe2 {[%emt 0:00:05]} Qg3+ {[%emt 0:00:01]} 34. Kd2 {[%emt 0:00:01]} Bh6+ {[%emt 0:00:02]} 35. Kc2 {[%emt 0:00:01]} 1-0

[Event "11th LCC Super Blitz 2019"]
[Site "London"]
[Date "2019.12.08"]
[Round "1.5"]
[White "Cox, John J"]
[Black "Onslow, Teddy"]
[Result "1-0"]
[ECO "A14"]
[WhiteElo "2346"]
[BlackElo "1647"]
[Annotator "NA"]
[PlyCount "91"]
[EventDate "2019.12.08"]
[EventType "swiss"]
[EventCountry "ENG"]
[SourceTitle "playchess.com"]
[Source "ChessBase"]
[SourceQuality "1"]
[TimeControl "180+2"]

1. c4 {[%emt 0:00:00]} e6 {[%emt 0:00:00]} 2. Nf3 {[%emt 0:00:02]} Nf6 {[%emt 0:00:00]} 3. g3 {[%emt 0:00:01]} d5 {[%emt 0:00:00]} 4. Bg2 {[%emt 0:00:01]} Be7 {[%emt 0:00:01]} 5. O-O {[%emt 0:00:02]} O-O {[%emt 0:00:02]} 6. b3 {[%emt 0:00:01]} c5 {[%emt 0:00:01]} 7. e3 {[%emt 0:00:02]} Nc6 {[%emt 0:00:01]} 8. Bb2 {[%emt 0:00:01]} a6 {[%emt 0:00:25]} 9. Nc3 {[%emt 0:00:03]} Bd7 {[%emt 0:00:17]} 10. cxd5 {[%emt 0:00:02]} exd5 {[%emt 0:00:00]} 11. d4 {[%emt 0:00:04]} cxd4 {[%emt 0:00:06]} 12. Nxd4 {[%emt 0:00:01]} Nxd4 {[%emt 0:00:01]} 13. Qxd4 {[%emt 0:00:03]} Bc6 {[%emt 0:00:01]} 14. Rfd1 {[%emt 0:00:11]} Rc8 {[%emt 0:00:15]} 15. Nxd5 {[%emt 0:00:25]} Bxd5 {[%emt 0:00:03]} 16. Bxd5 {[%emt 0:00:02]} Qxd5 {[%emt 0:00:03]} 17. Qxd5 {[%emt 0:00:03]} Nxd5 {[%emt 0:00:01]} 18. Rxd5 {[%emt 0:00:02]} Rc2 {[%emt 0:00:01]} 19. Be5 {[%emt 0:00:16]} f6 {[%emt 0:00:47]} 20. Bd4 {[%emt 0:00:12]} b5 {[%emt 0:00:29]} 21. a4 {[%emt 0:00:18]} b4 {[%emt 0:00:10]} 22. Rd7 {[%emt 0:00:11]} Kf7 {[%emt 0:00:07]} 23. Ra7 {[%emt 0:00:08]} Rc6 {[%emt 0:00:12]} 24. Rd1 {[%emt 0:00:13]} Rd8 {[%emt 0:00:03]} 25. Kf1 {[%emt 0:00:08]} Ke6 {[%emt 0:00:07]} 26. Ke2 {[%emt 0:00:04]} Rc2+ {[%emt 0:00:04]} 27. Rd2 {[%emt 0:00:03]} Rc6 {[%emt 0:00:25]} 28. a5 {[%emt 0:00:23]} Kf7 {[%emt 0:00:07]} 29. Bb6 {[%emt 0:00:05]} Rxd2+ {[%emt 0:00:01]} 30. Kxd2 {[%emt 0:00:01]} Rc3 {[%emt 0:00:01]} 31. Bd4 {[%emt 0:00:06]} Rxb3 {[%emt 0:00:03]} 32. Bc5 {[%emt 0:00:02]} Rb2+ {[%emt 0:00:01]} 33. Kd3 {[%emt 0:00:02]} Rxf2 {[%emt 0:00:07]} 34. Bxb4 {[%emt 0:00:04]} Rxh2 {[%emt 0:00:03]} 35. Rxe7+ Kg6 36. Re6 {[%emt 0:00:04]} Rh3 {[%emt 0:00:01]} 37. Bd6 {[%emt 0:00:02]} Rh2 {[%emt 0:00:01]} 38. Bf4 {[%emt 0:00:02]} h6 {[%emt 0:00:01]} 39. Rxa6 {[%emt 0:00:02]} Kf5 40. Ra7 {[%emt 0:00:01]} g5 {[%emt 0:00:01]} 41. Bd6 {[%emt 0:00:03]} Kg4 {[%emt 0:00:01]} 42. a6 {[%emt 0:00:01]} h5 {[%emt 0:00:02]} 43. Rf7 {[%emt 0:00:03]} h4 {[%emt 0:00:01]} 44. gxh4 {[%emt 0:00:01]} Rxh4 {[%emt 0:00:03]} 45. a7 {[%emt 0:00:00]} Rh8 {[%emt 0:00:02]} 46. Bb8 {[%emt 0:00:01]} 1-0

[Event "11th LCC Super Blitz 2019"]
[Site "London"]
[Date "2019.12.08"]
[Round "1.5"]
[White "Ismail, Mohammed Aayan"]
[Black "Bukojemski, Adam"]
[Result "0-1"]
[ECO "A36"]
[WhiteElo "1641"]
[BlackElo "2219"]
[Annotator "NA"]
[PlyCount "72"]
[EventDate "2019.12.08"]
[EventType "swiss"]
[EventCountry "ENG"]
[SourceTitle "playchess.com"]
[Source "ChessBase"]
[SourceQuality "1"]
[TimeControl "180+2"]

1. c4 {[%emt 0:00:00]} Nf6 {[%emt 0:00:00]} 2. Nc3 {[%emt 0:00:00]} c5 {[%emt 0:00:01]} 3. g3 {[%emt 0:00:00]} g6 {[%emt 0:00:01]} 4. Bg2 {[%emt 0:00:01]} Bg7 {[%emt 0:00:00]} 5. e3 {[%emt 0:00:01]} d6 {[%emt 0:00:01]} 6. Nge2 {[%emt 0:00:02]} Nc6 {[%emt 0:00:01]} 7. h3 {[%emt 0:00:19]} Bf5 {[%emt 0:00:06]} 8. d3 {[%emt 0:00:03]} h5 {[%emt 0:00:01]} 9. e4 {[%emt 0:00:09]} Bd7 {[%emt 0:00:02]} 10. Be3 {[%emt 0:00:08]} e5 {[%emt 0:00:07]} 11. Qd2 {[%emt 0:00:07]} Nd4 {[%emt 0:00:02]} 12. Bxd4 {[%emt 0:00:06]} cxd4 {[%emt 0:00:03]} 13. Nd5 {[%emt 0:00:04]} Nxd5 {[%emt 0:00:03]} 14. cxd5 {[%emt 0:00:02]} Qb6 {[%emt 0:00:02]} 15. O-O {[%emt 0:00:23]} O-O {[%emt 0:00:11]} 16. f4 {[%emt 0:00:24]} Bh6 {[%emt 0:00:03]} 17. b3 {[%emt 0:00:20]} a5 {[%emt 0:00:02]} 18. Qb2 {[%emt 0:00:05]} a4 {[%emt 0:00:02]} 19. b4 {[%emt 0:00:05]} a3 {[%emt 0:00:02]} 20. Qd2 {[%emt 0:00:34]} h4 {[%emt 0:00:08]} 21. g4 {[%emt 0:00:05]} exf4 {[%emt 0:00:01]} 22. Nxf4 {[%emt 0:00:04]} Rac8 {[%emt 0:00:05]} 23. Qf2 {[%emt 0:00:21]} Rc3 {[%emt 0:00:13]} 24. Qxh4 {[%emt 0:00:12]} Bxf4 {[%emt 0:00:11]} 25. Rxf4 {[%emt 0:00:02]} Rxd3 {[%emt 0:00:01]} 26. Kh2 {[%emt 0:00:03]} Rd2 {[%emt 0:00:26]} 27. Raf1 {[%emt 0:00:05]} d3 {[%emt 0:00:19]} 28. Rxf7 {[%emt 0:00:06]} Rxf7 {[%emt 0:00:05]} 29. Rxf7 {[%emt 0:00:01]} Kxf7 {[%emt 0:00:08]} 30. Qh7+ {[%emt 0:00:01]} Ke8 {[%emt 0:00:01]} 31. Qg8+ {[%emt 0:00:02]} Ke7 {[%emt 0:00:01]} 32. Qg7+ {[%emt 0:00:01]} Kd8 {[%emt 0:00:01]} 33. Qc3 {[%emt 0:00:03]} Qf2 {[%emt 0:00:02]} 34. Qh8+ {[%emt 0:00:03]} Kc7 {[%emt 0:00:01]} 35. Qc3+ {[%emt 0:00:01]} Kb6 {[%emt 0:00:02]} 36. Qd4+ {[%emt 0:00:06]} Qxd4 {[%emt 0:00:18]} 0-1